bitfinex/quotes_ETHUSD_20240828
["timestamp","ask_amount","ask_price","bid_price","bid_amount"]
[1724821099925,0.55,2476.7,2476.2,4.05692618]
[1724821100498,0.339,2476.6,2476.2,4.05692618]
[1724821100702,0.55,2476.5,2476.0,1.0]
[1724821101701,1.40548824,2476.9,2476.3,4.05692618]
[1724821101702,0.339,2476.8,2476.3,4.05692618]
[1724821101867,1.91854882,2476.8,2476.5,4.05692618]
[1724821102674,1.36854882,2476.8,2476.5,6.60582618]
[1724821102880,1.40548824,2476.9,2476.5,6.60582618]
[1724821103058,1.40548824,2476.9,2476.7,4.05692618]
[1724821103269,1.40548824,2477.3,2476.7,4.05692618]
[1724821103605,1.42323623,2477.2,2476.7,4.05692618]
[1724821103819,1.42323623,2477.2,2476.5,6.60582618]
[1724821104520,0.55,2477.1,2476.5,6.60582618]
[1724821107924,1.42323623,2477.2,2476.7,4.05692618]
[1724821108133,1.42323623,2477.2,2476.9,6.67092618]
[1724821108301,1.40548824,2477.3,2477.1,4.05692618]
[1724821108705,1.40548824,2477.3,2476.9,6.67092618]
[1724821108909,1.40548824,2477.3,2477.2,0.03890266]
[1724821109121,0.20662117,2477.5,2476.9,6.67092618]
[1724821109331,1.74448824,2477.7,2477.3,4.05692618]
[1724821109502,1.40548824,2477.7,2477.3,4.05692618]
[1724821109837,1.40548824,2477.7,2477.4,0.03890266]
[1724821110145,1.40548824,2477.7,2477.1,4.05692618]
[1724821110283,1.40548824,2477.7,2477.5,0.03836559]
[1724821110486,1.40548824,2477.7,2477.1,4.05692618]
[1724821110721,1.40548824,2477.7,2477.6,0.03836559]
[1724821110927,1.95548824,2477.7,2477.1,4.05692618]
[1724821111097,1.95548824,2477.7,2477.6,0.03819939]
[1724821111315,2.18493706,2477.7,2477.1,4.05692618]
[1724821111487,2.18493706,2477.7,2477.6,0.03819939]
[1724821111692,2.18493706,2477.7,2477.1,4.05692618]
[1724821111928,2.18493706,2477.7,2477.6,0.03819939]
[1724821112230,8.16660306,2477.7,2477.1,4.05692618]
[1724821112388,0.21849371,2477.6,2477.1,4.05692618]
[1724821117831,0.21849371,2477.6,2477.2,2.5188]
[1724821118699,0.21849371,2477.6,2476.1,0.08073907]
[1724821118700,0.21849371,2477.6,2477.5,4.05692618]
[1724821118904,1.40548824,2477.7,2477.5,4.05692618]
[1724821119221,12.28,2478.0,2477.5,4.09442227]
[1724821119526,1.40548824,2478.1,2477.6,2.5056]
[1724821119929,1.40548824,2478.1,2477.7,0.03749609]
[1724821120804,0.55,2478.0,2477.7,0.03749609]
[1724821124706,0.55,2478.0,2477.8,0.03715096]
[1724821124906,0.55,2478.0,2477.6,2.5056]
[1724821125149,0.55,2478.0,2477.9,0.03716374]
[1724821125355,0.55,2478.0,2477.6,2.5056]
[1724821125554,0.55,2478.0,2477.9,0.03716374]
[1724821125854,0.55,2478.0,2477.6,2.5056]
[1724821126010,0.55,2478.0,2477.9,0.03716374]
[1724821126407,0.55,2478.0,2477.6,2.5056]
[1724821126952,0.55,2478.0,2477.7,0.03671634]
[1724821132075,0.55,2478.0,2477.8,1.69406074]
[1724821132462,0.55,2478.0,2477.9,0.03671634]
[1724821133399,2.624214,2478.0,2477.9,0.03671634]
[1724821133702,0.95297022,2478.0,2477.7,1.69406074]
[1724821133832,0.55,2478.0,2477.7,1.69406074]
[1724821134028,0.55,2478.0,2477.6,2.5056]
[1724821134262,22.92840581,2477.9,2476.3,2.593]
[1724821134442,1.40548824,2477.6,2477.3,1.69406074]
[1724821134653,3.0,2477.7,2477.3,1.69406074]
[1724821134868,0.55,2477.6,2477.3,1.69406074]
[1724821135457,0.55,2477.8,2477.3,1.69406074]
[1724821135675,1.20800708,2477.8,2477.3,1.69406074]
[1724821135876,4.20800708,2477.8,2477.3,1.69406074]
[1724821136075,4.20800708,2477.8,2477.1,2.593]
[1724821136642,0.2697,2477.7,2477.1,2.593]
[1724821136987,0.55,2477.6,2477.1,2.593]
[1724821138297,0.63637171,2477.7,2477.1,2.593]
[1724821138499,0.63637171,2477.7,2477.3,2.55]
[1724821138699,1.40548824,2477.9,2477.3,2.55]
[1724821138924,1.40548824,2477.9,2477.7,2.547]
[1724821139127,12.28,2478.2,2477.7,2.547]
[1724821139332,1.26847,2478.1,2477.7,2.547]
[1724821139483,1.61291336,2478.3,2477.7,2.547]
[1724821139689,2.09343517,2478.3,2477.7,2.547]
[1724821139890,0.48052181,2478.2,2477.8,0.03747054]
[1724821140238,0.68986533,2478.2,2477.3,2.6361]
[1724821140431,1.13599309,2478.2,2477.9,0.03747054]
[1724821140737,19.157434,2478.1,2477.3,2.6361]
[1724821140890,0.82489065,2478.1,2477.3,2.6361]
[1724821141095,0.82489065,2478.1,2477.4,0.03747054]
[1724821142069,0.82489065,2478.1,2477.5,2.4077]
[1724821145822,0.82489065,2478.1,2477.6,0.03708707]
[1724821146122,0.82489065,2478.1,2477.7,2.6452]
[1724821146565,0.82489065,2478.1,2477.8,0.03708707]
[1724821146764,0.82489065,2478.1,2477.7,2.6452]
[1724821147070,0.82489065,2478.1,2477.8,0.03708707]
[1724821147370,0.82489065,2478.1,2477.7,2.6452]
[1724821147669,0.82489065,2478.1,2477.9,0.03708707]
[1724821147821,0.82489065,2478.1,2477.7,2.6452]
[1724821148231,0.82489065,2478.1,2477.8,0.03708707]
[1724821148517,0.82489065,2478.1,2477.7,2.6452]
[1724821148717,0.82489065,2478.1,2477.8,0.03708707]
[1724821148954,0.82489065,2478.1,2477.7,2.6452]
[1724821149160,0.82489065,2478.1,2477.8,0.036563]
[1724821149463,0.82489065,2478.1,2477.7,2.6452]
[1724821149669,0.82489065,2478.1,2477.9,0.036563]
[1724821149882,6.34727,2478.0,2477.7,2.6452]
[1724821150174,1.26721607,2477.9,2477.7,2.6452]
[1724821150340,0.82489065,2478.1,2477.7,2.6452]
[1724821156983,0.82489065,2478.1,2477.8,0.036563]
[1724821157188,10.788615,2478.0,2477.8,0.036563]
[1724821157487,0.55,2477.9,2477.7,2.6452]
[1724821157846,1.40548824,2478.3,2477.9,2.3983]
[1724821158081,1.40548824,2478.3,2478.2,4.09155133]
[1724821158287,7.03,2478.6,2478.2,4.09155133]
[1724821158595,1.931,2478.5,2478.2,4.09155133]
[1724821159861,1.931,2478.5,2478.4,4.17015133]
[1724821160063,7.03,2478.6,2478.4,4.17015133]
[1724821160692,1.40548824,2478.7,2478.4,4.17015133]
[1724821160863,1.40548824,2478.7,2478.6,4.29525133]
[1724821161944,1.40548824,2478.7,2478.6,2.602]
[1724821163182,32.2702472,2479.1,2478.6,2.602]
[1724821163183,13.68548824,2479.1,2478.6,2.602]
[1724821163484,1.61169921,2479.3,2478.9,2.6004]
[1724821163691,2.79465816,2479.3,2478.9,2.6004]
[1724821163892,2.768284,2479.2,2478.9,2.6004]
[1724821164254,2.21226,2479.2,2478.9,2.6004]
[1724821164455,2.79465816,2479.3,2478.9,2.6004]
[1724821164698,2.79465816,2479.3,2478.1,0.08068369]
[1724821164699,1.38916992,2479.3,2479.1,2.5335]
[1724821164898,1.40548824,2479.6,2479.1,2.5335]
[1724821166657,0.55,2479.5,2479.1,2.5335]
[1724821172627,1.40548824,2479.6,2479.4,4.06332099]
[1724821172754,1.40548824,2479.6,2479.5,2.6105]
[1724821173715,5.89153224,2479.6,2479.5,2.6105]
[1724821173878,6.96057124,2479.6,2479.5,2.6105]
[1724821174200,5.295044,2479.6,2479.5,2.6105]
[1724821174358,20.300433,2479.8,2479.5,2.6105]
[1724821174558,0.55,2479.7,2479.5,2.6105]
[1724821174897,5.506434,2479.6,2479.5,2.6105]
[1724821175674,2.023494,2479.6,2479.5,2.6105]
[1724821176285,0.55,2479.7,2479.5,2.6105]
[1724821176494,0.55,2479.8,2479.5,2.6105]
[1724821176800,4.845044,2479.7,2479.5,2.6105]
[1724821176958,0.5395044,2479.6,2479.5,2.6105]
[1724821177155,3.3345484,2479.6,2479.5,2.6105]
[1724821177463,2.795044,2479.6,2479.5,2.6105]
[1724821177657,5.647564,2479.7,2479.5,2.6105]
[1724821178067,0.55,2479.8,2479.5,2.6105]
[1724821178267,4.843847,2479.7,2479.5,2.6105]
[1724821178563,4.843847,2479.7,2479.2,4.06332099]
[1724821178564,0.4226397,2480.3,2479.7,2.4771]
[1724821178758,0.20770332,2480.7,2480.1,2.4771]
[1724821178991,1.6188,2480.4,2480.3,6.54042099]
[1724821179191,7.2904,2481.1,2480.3,6.54042099]
[1724821179500,0.405,2481.0,2480.3,6.54042099]
[1724821179838,17.882193,2480.9,2480.3,6.54042099]
[1724821179987,1.8287193,2480.8,2480.3,6.54042099]
[1724821180188,15.5150143,2480.8,2480.3,6.54042099]
[1724821180429,10.902945,2480.7,2480.3,6.54042099]
[1724821180585,21.521531,2480.9,2480.3,6.54042099]
[1724821180790,2.1926531,2480.8,2480.3,6.54042099]
[1724821181020,13.015079,2480.7,2480.3,6.54042099]
[1724821181540,0.405,2481.0,2480.3,6.54042099]
[1724821181541,0.55,2480.6,2480.3,6.54042099]
[1724821181825,27.813877,2480.8,2480.3,6.54042099]
[1724821182130,21.1809147,2480.7,2480.3,6.54042099]
[1724821182423,16.796858,2480.6,2480.3,6.54042099]
[1724821182676,15.437858,2480.5,2480.3,6.54042099]
[1724821182790,5.73707,2480.4,2480.3,6.54042099]
[1724821182991,4.89313,2480.4,2480.3,6.54042099]
[1724821183191,5.437443,2480.4,2480.3,6.54042099]
[1724821186293,5.667783,2480.4,2480.3,6.54042099]
[1724821186920,4.097443,2480.4,2480.3,6.54042099]
[1724821190372,3.261425,2480.4,2480.3,6.54042099]
[1724821190525,2.717112,2480.4,2480.3,6.54042099]
[1724821192022,2.717112,2480.4,2480.3,4.16758769]
[1724821196918,0.2074799,2480.7,2480.3,4.16758769]
[1724821197136,1.40548824,2480.8,2480.7,2.518]
[1724821197450,9.99363924,2480.8,2480.7,2.518]
[1724821197648,11.07910216,2480.8,2480.7,2.518]
[1724821198079,9.67361392,2480.8,2480.7,2.518]
[1724821198882,9.32851492,2480.8,2480.7,2.518]
[1724821199058,4.45829492,2480.8,2480.7,2.518]
[1724821199261,3.458931,2480.8,2480.7,2.518]
[1724821199595,3.562369,2480.8,2480.7,2.518]
[1724821200175,3.562369,2480.8,2480.7,2.49153]
[1724821201306,3.408781,2480.8,2480.7,2.49153]
[1724821201502,3.408781,2480.8,2480.7,2.06964223]
[1724821201718,3.7496591,2480.8,2480.7,2.06964223]
[1724821204465,3.1880321,2480.8,2480.7,2.06964223]
[1724821205914,5.75455313,2480.8,2479.1,2.4717]
[1724821206065,5.75455313,2480.8,2477.7,1.26449598]
[1724821206066,1.69048769,2480.2,2479.2,2.04977603]
[1724821206260,1.69048769,2480.0,2479.2,2.04977603]
[1724821206577,52.23314648,2480.1,2478.9,1.69048769]
[1724821206578,2.72918769,2479.8,2478.9,1.69048769]
[1724821206784,2.89922048,2479.7,2478.9,1.69048769]
[1724821207122,2.89922048,2479.7,2476.9,0.41480135]
[1724821207123,1.69048769,2479.4,2478.6,1.69048769]
[1724821207293,1.24491596,2479.3,2478.6,1.69048769]
[1724821207477,0.55,2479.2,2478.6,1.69048769]
[1724821207677,1.79491596,2479.2,2478.6,1.69048769]
[1724821208207,1.32716721,2479.1,2478.4,4.06310383]
[1724821208706,0.55,2479.0,2478.4,4.06310383]
[1724821208912,1.87716721,2479.0,2478.4,4.06310383]
[1724821209095,1.87716721,2479.0,2478.5,2.4178]
[1724821209409,1.32716721,2478.9,2478.5,2.4178]
[1724821209614,0.55,2478.8,2478.5,2.4178]
[1724821210867,0.55,2478.8,2476.8,4.06310383]
[1724821210868,4.93410721,2478.7,2478.2,6.45890383]
[1724821211173,0.54841072,2478.6,2478.2,6.45890383]
[1724821211508,1.87716721,2478.5,2478.2,6.45890383]
[1724821211671,1.32716721,2478.5,2478.2,6.45890383]
[1724821211872,0.55,2478.4,2478.2,2.3958]
[1724821212070,1.87716721,2478.4,2478.2,2.3958]
[1724821212493,9.72416721,2478.3,2477.9,2.372]
[1724821212756,0.55,2478.4,2477.9,2.372]
[1724821212757,0.55,2478.4,2478.0,4.06310383]
[1724821214670,0.55,2478.4,2477.9,2.372]
[1724821214884,0.55,2478.4,2477.9,6.43510383]
[1724821217850,0.58726419,2478.4,2477.9,6.43510383]
[1724821218148,0.55,2478.3,2477.9,6.43510383]
[1724821218739,0.55,2478.3,2477.9,2.372]
[1724821219444,13.761005,2478.2,2477.6,2.4031]
[1724821219742,0.55,2478.1,2477.6,2.4031]
[1724821219898,1.13726419,2478.3,2477.6,2.4031]
[1724821220101,0.2754801,2478.2,2477.6,2.4031]
[1724821220448,0.55,2478.1,2477.6,2.4031]
[1724821220603,0.55,2478.1,2477.9,4.06310383]
[1724821220907,0.55,2478.1,2478.0,2.6228]
[1724821221107,0.55,2478.3,2478.0,2.6228]
[1724821221309,0.21675368,2478.2,2478.0,2.6228]
[1724821221532,0.55,2478.1,2478.0,2.6228]
[1724821223707,9.235331,2478.1,2478.0,2.6228]
[1724821224564,9.235331,2478.1,2477.8,2.3872]
[1724821224871,0.94520847,2478.0,2477.8,2.3872]
[1724821225040,0.55,2478.1,2477.8,2.3872]
[1724821227050,0.55,2478.1,2477.8,0.2672]
[1724821227362,0.55,2478.1,2477.7,4.06310383]
[1724821227553,0.55,2478.1,2477.7,1.94310383]
[1724821227793,0.55,2478.1,2477.0,0.27004525]
[1724821227980,1.40548824,2478.0,2477.0,0.09314908]
[1724821228141,1.40548824,2478.0,2475.9,4.666]
[1724821228344,1.40548824,2478.0,2476.8,3.88620766]
[1724821228660,1.40548824,2478.0,2477.9,4.06310383]
[1724821228967,1.99275243,2478.6,2477.7,4.06310383]
[1724821229128,1.99275243,2478.6,2477.4,4.06310383]
[1724821229328,1.99275243,2478.6,2477.4,4.46941421]
[1724821230254,1.99275243,2478.6,2477.5,2.5728]
[1724821230475,0.55,2478.5,2477.5,2.5728]
[1724821230779,1.12607008,2478.5,2477.5,2.5728]
[1724821232227,0.55,2478.5,2477.5,2.5728]
[1724821232435,0.55,2478.5,2477.6,2.3429]
[1724821233067,0.55,2478.5,2477.6,6.40600383]
[1724821233277,0.55,2478.5,2477.7,2.451]
[1724821233446,0.55,2478.5,2477.7,2.53171103]
[1724821233773,0.55,2478.5,2477.9,2.451]
[1724821233979,1.40548824,2478.6,2477.9,2.451]
[1724821234132,1.40548824,2478.6,2478.1,2.451]
[1724821243915,2.3211,2478.5,2477.7,2.3924]
[1724821244079,0.77896921,2478.4,2477.5,2.3924]
[1724821244286,2.3211,2478.3,2477.1,2.3924]
[1724821244494,2.3211,2478.1,2477.1,2.3924]
[1724821244825,0.97765882,2478.0,2477.1,2.3924]
[1724821248716,0.97765882,2478.0,2477.2,0.08073624]
[1724821248890,0.97765882,2478.0,2477.2,4.14384007]
[1724821249682,0.97765882,2478.0,2477.1,2.3924]
[1724821250738,0.97765882,2478.0,2477.3,2.3649]
[1724821253337,0.97765882,2478.0,2477.1,2.5491]
[1724821256410,0.97765882,2478.0,2477.2,0.08072777]
[1724821256614,0.97765882,2478.0,2477.1,2.62982777]
[1724821256809,0.97765882,2478.0,2477.1,2.5491]
[1724821257131,2.5284,2477.9,2477.1,2.5491]
[1724821257428,0.35060588,2477.8,2477.1,2.5491]
[1724821258453,0.35060588,2477.8,2477.1,2.62982771]
[1724821260743,0.35060588,2477.8,2477.1,2.5491]
[1724821263756,0.55,2477.7,2477.1,2.5491]
[1724821263962,2.4807,2477.6,2476.7,2.4572]
[1724821264349,2.3767,2477.4,2476.7,2.4572]
[1724821264655,0.55,2477.3,2476.7,2.4572]
[1724821264894,0.59267,2477.2,2476.7,2.4572]
[1724821265188,0.59267,2477.2,2476.5,2.4695]
[1724821267273,0.59267,2477.2,2476.6,4.06310383]
[1724821268391,0.59267,2477.2,2476.5,2.4695]
[1724821268595,0.414267,2477.1,2476.5,2.4695]
[1724821269566,0.414267,2477.1,2476.3,2.3092]
[1724821269567,2.9942,2477.0,2476.3,2.3092]
[1724821269771,3.3408467,2476.9,2476.3,2.3092]
[1724821270066,3.0,2477.3,2476.8,4.06310383]
[1724821270067,2.4442,2477.3,2476.8,4.06310383]
[1724821270389,3.0,2477.4,2477.0,4.06310383]
[1724821270561,1.40548824,2477.5,2477.0,4.06310383]
[1724821271190,1.40548824,2477.5,2476.9,2.3092]
[1724821271385,1.40548824,2477.5,2476.9,2.38993759]
[1724821271697,3.31845706,2477.5,2476.9,2.3092]
[1724821271855,3.0,2477.4,2476.9,2.3092]
[1724821272494,1.40548824,2477.5,2477.3,2.4081]
[1724821272697,3.0,2477.7,2477.3,2.4081]
[1724821272895,3.0,2477.7,2477.0,4.06310383]
[1724821272896,3.0,2477.6,2477.0,2.4081]
[1724821273148,2.3833,2477.7,2477.1,0.08072836]
[1724821273366,5.3833,2477.7,2477.0,2.4081]
[1724821273660,0.27621788,2477.6,2477.0,2.4081]
[1724821273808,3.27621788,2477.6,2477.0,2.4081]
[1724821277546,3.0,2477.6,2477.0,2.4081]
[1724821277751,1.40548824,2477.9,2477.2,2.3848]
[1724821277979,0.55,2477.8,2477.2,3.11839127]
[1724821278181,0.55,2477.8,2477.2,2.46552745]
[1724821279928,0.55,2477.8,2477.2,2.3848]
[1724821283128,0.55,2477.8,2476.9,6.06840383]
[1724821283341,0.42875882,2477.7,2476.9,2.4274]
[1724821283665,0.55,2477.6,2476.9,2.4274]
[1724821284022,2.2907,2477.5,2476.7,6.35440383]
[1724821284225,0.83407,2477.4,2476.7,6.35440383]
[1724821284448,3.83407,2477.4,2476.7,6.35440383]
[1724821285773,3.83407,2477.4,2476.7,2.2913]
[1724821291387,3.83407,2477.4,2476.5,6.42250383]
[1724821291600,0.612477,2477.3,2476.5,6.42250383]
[1724821292832,2.397,2477.2,2476.5,2.3594]
[1724821292988,2.947,2477.2,2476.5,2.3594]
[1724821293186,0.55,2477.2,2476.5,2.3594]
[1724821293405,0.3843547,2477.2,2476.6,4.06310383]
[1724821293599,2.68107,2477.4,2476.6,4.14385183]
[1724821293901,0.55,2477.3,2476.6,4.14385183]
[1724821294124,0.55,2477.3,2476.7,2.4887]
[1724821294432,0.323107,2477.2,2476.7,2.4887]
[1724821298829,0.28407,2477.4,2477.0,4.06310383]
[1724821299001,1.40548824,2477.6,2477.0,4.06310383]
[1724821299209,1.40548824,2477.6,2476.9,2.3217]
[1724821299419,1.40548824,2477.6,2476.9,2.40243571]
[1724821300024,1.40548824,2477.6,2476.9,2.3217]
[1724821300908,1.40548824,2477.6,2477.1,2.5007]
[1724821301128,1.40548824,2477.6,2477.2,4.39390122]
[1724821301336,2.5053,2477.9,2477.2,4.39390122]
[1724821301337,1.40548824,2477.9,2477.2,4.39390122]
[1724821301523,1.40548824,2477.9,2477.2,0.08072739]
[1724821302036,1.40548824,2477.9,2477.4,1.69434764]
[1724821303201,4.20894764,2477.8,2477.1,2.5007]
[1724821303519,2.4579,2477.5,2476.8,4.10514764]
[1724821303906,0.55,2477.4,2476.8,4.10514764]
[1724821304130,0.55,2477.4,2476.1,2.3145]
[1724821304340,0.30079,2477.3,2476.5,2.3145]
[1724821304721,0.30079,2477.3,2476.6,4.06871427]
[1724821305417,0.30079,2477.3,2476.5,2.3145]
[1724821306242,2.3019,2477.2,2476.5,2.3145]
[1724821306565,0.260269,2477.1,2476.5,2.3145]
[1724821306725,3.260269,2477.1,2476.5,2.3145]
[1724821307427,0.260269,2477.1,2476.5,2.3145]
[1724821307816,0.260269,2477.1,2476.6,4.06871427]
[1724821308461,0.260269,2477.1,2476.5,2.3145]
[1724821309319,0.260269,2477.1,2476.6,4.06871427]
[1724821310919,0.260269,2477.1,2476.5,2.3145]
[1724821311271,0.55,2477.0,2476.5,2.3145]
[1724821311419,0.3241769,2476.9,2476.5,2.3145]
[1724821313355,0.55,2477.0,2476.5,2.3145]
[1724821313556,0.260269,2477.1,2476.6,4.06871427]
[1724821313858,0.30079,2477.3,2476.5,2.3145]
[1724821314063,0.55,2477.2,2476.5,2.3145]
[1724821315062,0.55,2477.2,2476.3,2.3585]
[1724821315063,2.4843,2477.1,2476.3,2.3585]
[1724821315356,0.30343,2477.0,2476.4,4.14946678]
[1724821315661,0.30343,2477.0,2476.4,4.06871427]
[1724821316820,0.30343,2477.0,2476.4,4.14946669]
[1724821317032,0.30343,2477.0,2476.4,4.06871427]
[1724821317473,0.30343,2477.0,2476.4,4.14946667]
[1724821317645,0.30343,2477.0,2476.4,4.06871427]
[1724821318258,0.30343,2477.0,2476.4,4.14946664]
[1724821319283,0.30343,2477.0,2476.4,4.06871427]
[1724821321570,0.30343,2477.0,2476.2,4.06871427]
[1724821321769,0.30343,2477.0,2475.6,5.25]
[1724821321770,3.0366,2476.9,2476.1,2.3577]
[1724821321973,2.4866,2476.9,2476.2,4.06871427]
[1724821322181,0.30366,2476.8,2476.2,4.06871427]
[1724821323650,0.30366,2476.8,2476.2,4.14947227]
[1724821324047,0.75973836,2477.2,2476.4,4.06871427]
[1724821324237,2.3802,2477.1,2476.4,6.39331427]
[1724821325752,2.3802,2477.1,2476.2,6.38331427]
[1724821325947,2.84384782,2477.1,2476.2,7.0216457]
[1724821326176,2.84384782,2477.1,2476.2,6.38331427]
[1724821327066,2.84384782,2477.1,2476.2,4.06871427]
[1724821327268,2.9634,2477.0,2476.2,4.06871427]
[1724821327579,2.9634,2477.0,2476.3,2.3755]
[1724821327785,0.34270478,2476.9,2476.3,2.3755]
[1724821327989,0.55,2476.8,2476.3,2.3755]
[1724821328156,0.55,2476.8,2476.5,1.69553711]
[1724821329992,0.34270478,2476.9,2476.7,1.69553711]
[1724821330588,0.34270478,2476.9,2476.5,1.69553711]
[1724821333900,0.34270478,2476.9,2476.7,1.69553711]
[1724821334067,4.14257824,2477.3,2476.7,4.14143711]
[1724821334755,2.73709,2477.3,2476.7,4.14143711]
[1724821334956,0.273709,2477.2,2476.7,4.14143711]
[1724821338991,0.30079,2477.3,2477.1,1.69553711]
[1724821339205,2.4109,2478.0,2477.2,0.08073171]
[1724821339354,2.4109,2478.0,2477.7,1.69553711]
[1724821339990,2.4109,2478.0,2477.3,6.42735631]
[1724821340784,2.4109,2478.0,2477.4,0.08071964]
[1724821341573,1.61656176,2478.3,2477.7,4.06615631]
[1724821341755,1.82220319,2478.3,2477.7,4.14686653]
[1724821341957,0.41671495,2478.3,2477.8,0.08070927]
[1724821342163,0.28742149,2478.2,2477.7,4.06615631]
[1724821342388,0.28742149,2478.2,2477.6,2.4026]
[1724821342805,2.289,2478.0,2477.2,2.343]
[1724821343683,2.289,2478.0,2477.3,4.06615631]
[1724821343890,2.3239,2478.2,2477.3,4.06615631]
[1724821344061,0.25349735,2478.1,2477.3,4.06615631]
[1724821348784,0.25349735,2478.1,2477.2,6.40915631]
[1724821350514,0.25349735,2478.1,2477.5,2.3657]
[1724821351384,0.25349735,2478.1,2477.5,2.44641694]
[1724821352938,0.25349735,2478.1,2477.5,2.3657]
[1724821354928,0.25349735,2478.1,2477.5,2.44641676]
[1724821356332,0.25349735,2478.1,2477.5,2.3657]
[1724821357295,0.25349735,2478.1,2477.5,2.44641665]
[1724821357491,4.04585232,2478.4,2477.6,4.14687294]
[1724821357694,1.61075232,2478.4,2477.8,4.06615631]
[1724821357889,2.01533755,2478.4,2477.9,0.08070518]
[1724821358295,2.01533755,2478.4,2477.7,2.4914]
[1724821358729,2.01533755,2478.4,2477.9,2.4112]
[1724821358900,2.01533755,2478.4,2477.9,2.49190517]
[1724821360129,2.01533755,2478.4,2478.0,1.69352575]
[1724821360634,2.01533755,2478.4,2477.9,1.69352575]
[1724821360841,2.01533755,2478.4,2478.0,1.69352575]
[1724821361296,2.01533755,2478.4,2478.1,1.69352575]
[1724821361493,0.60984931,2478.4,2478.1,1.69352575]
[1724821361905,0.60984931,2478.4,2478.1,4.07822575]
[1724821362521,0.40458523,2478.4,2478.1,4.07822575]
[1724821363000,13.68548824,2478.7,2478.1,4.07822575]
[1724821363201,0.55,2478.6,2478.1,4.07822575]
[1724821364207,0.55,2478.6,2478.0,1.69352575]
[1724821364404,0.55,2478.6,2478.1,1.69352575]
[1724821366162,0.55,2478.6,2478.2,1.69352575]
[1724821366446,1.44488605,2478.5,2478.2,1.69352575]
[1724821367740,0.55,2478.6,2478.2,1.69352575]
[1724821367950,1.61886053,2478.7,2478.3,1.69352575]
[1724821368150,0.21337229,2478.7,2478.2,1.69352575]
[1724821368347,0.25647723,2478.7,2478.2,1.69352575]
[1724821374988,0.25647723,2478.7,2478.4,1.69352575]
[1724821375136,0.2150322,2478.8,2478.4,1.69352575]
[1724821375341,4.53377824,2479.1,2478.4,1.69352575]
[1724821375976,4.53377824,2479.1,2477.3,5.25]
[1724821375977,2.2758,2479.0,2478.2,1.69352575]
[1724821376173,2.2758,2478.9,2478.2,1.69352575]
[1724821376470,0.55,2478.8,2478.2,1.69352575]
[1724821380471,0.76499999,2478.8,2478.2,1.69352575]
[1724821380671,0.76499999,2478.8,2478.4,1.69352575]
[1724821380872,0.30408,2478.7,2478.4,1.69352575]
[1724821382772,2.2758,2478.9,2478.6,1.69352575]
[1724821382973,2.322,2479.1,2478.6,1.69352575]
[1724821383970,1.61197983,2479.2,2478.6,1.69352575]
[1724821384175,2.3429,2479.3,2478.8,1.69352575]
[1724821384392,2.3429,2479.2,2478.6,1.69352575]
[1724821384547,2.8929,2479.2,2478.6,1.69352575]
[1724821384748,0.54770903,2479.1,2477.8,5.25]
[1724821384952,2.4064,2478.8,2477.5,2.3827]
[1724821385179,2.4064,2478.6,2477.9,1.69352575]
[1724821385695,0.55,2478.5,2477.9,1.69352575]
[1724821385864,3.55,2478.5,2477.9,1.69352575]
[1724821386263,3.55,2478.5,2477.9,4.11022575]
[1724821389462,2.4306,2478.4,2477.5,2.3963]
[1724821389652,2.9806,2478.3,2477.6,1.69352575]
[1724821393597,2.9806,2478.3,2477.3,2.4213]
[1724821393899,1.69352575,2478.1,2476.6,2.4848]
[1724821394103,2.3969,2477.9,2477.2,1.69352575]
[1724821394254,2.3969,2477.6,2476.6,2.4848]
[1724821394455,2.3969,2477.4,2475.1,6.14543264]
[1724821394699,2.3969,2477.4,2476.5,1.69352575]
[1724821395007,2.3969,2477.2,2476.5,1.69352575]
[1724821395157,0.55,2477.1,2476.5,1.69352575]
[1724821395358,0.55,2477.1,2476.7,1.69352575]
[1724821396094,0.55,2477.1,2476.5,4.06870336]
[1724821396268,0.55,2477.1,2476.3,4.06870336]
[1724821396472,0.29469,2477.0,2476.3,4.06870336]
[1724821397088,0.29469,2477.0,2476.5,4.06870336]
[1724821397292,0.55,2477.1,2476.5,4.06870336]
[1724821398008,0.42280683,2477.0,2476.5,4.06870336]
[1724821398307,0.42280683,2477.0,2476.7,4.06870336]
[1724821400114,0.42280683,2477.0,2476.5,4.06870336]
[1724821400480,0.42280683,2477.0,2476.7,4.06870336]
[1724821401161,0.42280683,2477.0,2476.4,2.70974]
[1724821401162,0.42280683,2477.0,2476.5,4.06870336]
[1724821401407,2.73880683,2477.0,2476.5,4.06870336]
[1724821403910,0.42280683,2477.0,2476.5,4.06870336]
[1724821404690,0.42280683,2477.0,2476.5,4.14945302]
[1724821408028,0.42280683,2477.0,2476.7,4.06870336]
[1724821408188,0.42280683,2477.0,2476.9,4.06870336]
[1724821408731,0.42280683,2477.0,2476.8,2.2934]
[1724821408878,0.42280683,2477.0,2476.8,2.37414059]
[1724821409390,0.42280683,2477.0,2476.7,4.06870336]
[1724821409609,0.69012751,2477.0,2476.7,4.06870336]
[1724821409923,0.69012751,2477.0,2476.5,6.52010336]
[1724821412516,0.42280683,2477.0,2476.7,4.06870336]
[1724821412718,0.42280683,2477.0,2476.8,0.08074112]
[1724821413222,0.42280683,2477.0,2476.7,4.06870336]
[1724821413787,0.42280683,2477.0,2476.8,0.08074111]
[1724821414230,0.42280683,2477.0,2476.7,4.14944447]
[1724821414831,0.42280683,2477.0,2476.7,4.06870336]
[1724821415725,0.42280683,2477.0,2476.7,4.14944451]
[1724821416302,0.42280683,2477.0,2476.7,4.06870336]
[1724821416503,0.42280683,2477.0,2476.5,6.52010336]
[1724821416706,0.42280683,2477.0,2476.6,0.0807445]
[1724821418207,0.42280683,2477.0,2476.7,4.06870336]
[1724821418439,0.42280683,2477.0,2476.8,0.08074053]
[1724821418836,0.42280683,2477.0,2476.9,6.50700336]
[1724821423834,0.42280683,2477.0,2476.9,4.06870336]
[1724821426656,0.32280683,2477.0,2476.9,4.06870336]
[1724821428029,0.32280683,2477.0,2476.9,4.7076237]
[1724821428363,0.32280683,2477.0,2476.9,4.06870336]
[1724821428729,0.32280683,2477.0,2476.9,6.32790336]
[1724821429760,0.32280683,2477.0,2476.8,4.06870336]